[Event "Match Karjakin-Inarkiev 2019"]
[Site "Nazran"]
[Date "2019.08.02"]
[Round "3.1"]
[White "Karjakin, Sergey"]
[Black "Inarkiev, Ernesto"]
[Result "0-1"]
[ECO "B33"]
[WhiteElo "2750"]
[BlackElo "2682"]
[Annotator "RC"]
[PlyCount "86"]
[EventDate "2019.08.02"]
[EventType "match"]
[EventCountry "RUS"]
[SourceTitle "playchess.com"]
[Source "ChessBase"]
[SourceQuality "1"]
[TimeControl "900+10"]

1. e4 {[%emt 0:00:00]} c5 {[%emt 0:00:00]} 2. Nf3 {[%emt 0:00:00]} Nc6 {[%emt 0:00:00]} 3. d4 {[%emt 0:00:00]} cxd4 {[%emt 0:00:00]} 4. Nxd4 {[%emt 0:00:00]} Nf6 {[%emt 0:00:00]} 5. Nc3 {[%emt 0:00:00]} e5 {[%emt 0:00:00]} 6. Ndb5 {[%emt 0:00:00]} d6 {[%emt 0:00:00]} 7. Nd5 {[%emt 0:00:00]} Nxd5 {[%emt 0:00:00]} 8. exd5 {[%emt 0:00:00]} Ne7 {[%emt 0:00:00]} 9. c4 {[%emt 0:00:00]} Ng6 {[%emt 0:00:00]} 10. Qa4 {[%emt 0:00:00]} Bd7 {[%emt 0:00:00]} 11. Qb4 {[%emt 0:00:00]} Bf5 {[%emt 0:00:00]} 12. h4 {[%emt 0:00:00]} h5 {[%emt 0:00:00]} 13. Bg5 {[%emt 0:00:00]} Qb8 {[%emt 0:00:00]} 14. g3 {[%emt 0:00:00]} a6 {[%emt 0:00:00]} 15. Nc3 {[%emt 0:00:00]} Be7 {[%emt 0:00:00]} 16. Be3 {[%emt 0:00:00]} O-O {[%emt 0:00:00]} 17. Be2 {[%emt 0:00:00]} e4 {[%emt 0:00:00]} 18. Bxh5 {[%emt 0:00:00]} Ne5 {[%emt 0:00:00]} 19. Be2 {[%emt 0:00:00]} Qc8 {[%emt 0:00:33]} 20. Na4 {[%emt 0:00:00]} Bd8 {[%emt 0:02:46]} 21. Qxd6 {[%emt 0:00:32]} Nxc4 {[%emt 0:01:13]} 22. Qf4 {[%emt 0:02:20]} Bc7 {[%emt 0:03:18]} 23. Qg5 {[%emt 0:00:02]} f6 {[%emt 0:03:22]} 24. Qh5 {[%emt 0:00:11]} Ne5 {[%emt 0:00:17]} 25. Rc1 {[%emt 0:04:28]} Bg6 {[%emt 0:00:49]} 26. Qxe5 {[%emt 0:00:31]} fxe5 {[%emt 0:00:28]} 27. O-O {[%emt 0:00:03]} Qb8 {[%emt 0:03:25]} 28. Nc5 {[%emt 0:00:45]} Bd6 {[%emt 0:00:52]} 29. Nd7 {[%emt 0:00:30]} Qe8 {[%emt 0:00:02]} 30. Nxf8 {[%emt 0:00:04]} Qxf8 {[%emt 0:00:09]} 31. Rc3 {[%emt 0:00:39]} Rc8 {[%emt 0:00:17]} 32. Rfc1 {[%emt 0:00:11]} Rxc3 {[%emt 0:00:04]} 33. Rxc3 {[%emt 0:00:01]} Qf7 {[%emt 0:00:36]} 34. Rc8+ {[%emt 0:00:23]} Kh7 {[%emt 0:00:01]} 35. Rd8 {[%emt 0:00:00]} Qxd5 {[%emt 0:00:32]} 36. Bg4 {[%emt 0:00:28]} Bf7 {[%emt 0:00:34]} 37. Bf5+ {[%emt 0:01:03]} g6 {[%emt 0:00:10]} 38. Bg4 {[%emt 0:00:08]} Be6 {[%emt 0:00:01]} 39. Be2 {[%emt 0:00:04]} Qc6 {[%emt 0:00:35]} 40. Bg5 {[%emt 0:00:13]} Kg7 {[%emt 0:00:05]} 41. h5 {[%emt 0:00:29]} gxh5 {[%emt 0:00:07]} 42. Bxh5 {[%emt 0:00:01]} Bc5 {[%emt 0:00:32]} 43. b4 {[%emt 0:00:15]} Bxb4 {[%emt 0:00:06]} 0-1